bitfinex/quotes_SOLUSD_20241210
["timestamp","ask_amount","ask_price","bid_price","bid_amount"]
[1733806660179,6.3846,216.31,216.2,23.776884]
[1733806660395,6.3846,216.31,216.21,0.69353876]
[1733806662884,6.3846,216.31,216.22,23.776884]
[1733806663085,6.3846,216.31,216.24,23.776884]
[1733806663281,6.3846,216.31,216.26,23.776884]
[1733806663577,1.6362,216.32,216.25,0.6933677]
[1733806663578,1.6362,216.32,216.28,23.776884]
[1733806663782,1.6362,216.32,216.29,0.69327594]
[1733806664697,0.5682305,216.33,216.29,0.69327594]
[1733806665003,0.5682305,216.33,216.3,23.776884]
[1733806665224,0.5682305,216.33,216.31,0.69321621]
[1733806666207,0.5682305,216.33,216.29,0.69324734]
[1733806666508,0.5682305,216.33,216.3,23.776884]
[1733806667406,0.5682305,216.33,216.3,24.47012913]
[1733806668203,0.5682305,216.33,216.3,23.776884]
[1733806668992,0.5682305,216.33,216.32,23.776884]
[1733806671917,6.0374,216.44,216.32,40.95172212]
[1733806672095,6.0374,216.44,216.34,23.776884]
[1733806672439,6.0374,216.44,216.36,23.776884]
[1733806672612,6.0374,216.44,216.38,23.776884]
[1733806672819,6.0374,216.44,216.39,0.69296078]
[1733806672991,1.5108,216.46,216.4,23.776884]
[1733806673190,1.5108,216.46,216.41,0.69285696]
[1733806673727,6.2654,216.5,216.42,23.776884]
[1733806673933,6.2654,216.5,216.44,23.776884]
[1733806674100,1.5108,216.53,216.44,23.776884]
[1733806674101,1.5108,216.53,216.46,23.776884]
[1733806674309,1.5108,216.53,216.48,23.776884]
[1733806674527,0.5682305,216.55,216.5,23.776884]
[1733806674908,0.5682305,216.55,216.49,0.69263911]
[1733806677421,0.5682305,216.55,216.48,23.776884]
[1733806678725,0.5682305,216.55,216.49,0.69268248]
[1733806681536,0.5682305,216.55,216.44,0.69268538]
[1733806681936,0.5682305,216.55,216.45,23.776884]
[1733806682137,0.5682305,216.55,216.47,23.776884]
[1733806685544,0.5682305,216.55,216.46,0.69272234]
[1733806685746,20.0,216.54,216.38,0.69279949]
[1733806686124,7.7762,216.53,216.38,0.69279949]
[1733806686860,7.7762,216.53,216.39,0.69296205]
[1733806687162,7.7762,216.53,216.42,20.0]
[1733806687455,7.7762,216.53,216.44,23.776884]
[1733806687625,7.7762,216.53,216.45,0.69272907]
[1733806689835,7.7762,216.53,216.46,23.776884]
[1733806690052,7.7762,216.53,216.48,23.776884]
[1733806691231,0.5682305,216.55,216.5,23.776884]
[1733806692766,0.5682305,216.55,216.51,0.69258916]
[1733806693640,0.5682305,216.55,216.52,23.776884]
[1733806694250,0.5682305,216.55,216.47,20.0]
[1733806694459,0.5682305,216.55,216.49,23.776884]
[1733806695074,0.5682305,216.55,216.5,0.69260546]
[1733806696583,0.5682305,216.55,216.51,23.776884]
[1733806696882,2.47615194,216.58,216.51,23.776884]
[1733806698898,20.0,216.66,216.53,23.776884]
[1733806699867,7.9993,216.65,216.53,23.776884]
[1733806700447,20.0,216.62,216.45,0.69258039]
[1733806701078,20.0,216.6,216.45,0.69258039]
[1733806701582,20.0,216.6,216.42,0.69272522]
[1733806701788,20.0,216.62,216.42,0.69272522]
[1733806702275,20.0,216.6,216.42,0.69272522]
[1733806702482,20.0,216.6,216.43,23.776884]
[1733806702779,20.0,216.6,216.45,23.776884]
[1733806702989,20.0,216.62,216.47,23.776884]
[1733806703378,20.0,216.6,216.47,23.776884]
[1733806704876,20.0,216.62,216.47,23.776884]
[1733806705201,20.0,216.62,216.49,23.776884]
[1733806707063,7.9993,216.65,216.51,23.776884]
[1733806707291,7.9993,216.65,216.53,23.776884]
[1733806708995,7.9993,216.65,216.5,23.776884]
[1733806709971,7.9993,216.65,216.49,0.69260777]
[1733806710169,17.9993,216.65,216.47,23.776884]
[1733806710370,20.0,216.62,216.47,23.776884]
[1733806711486,20.0,216.6,216.47,23.776884]
[1733806711681,30.0,216.6,216.42,0.69274732]
[1733806712088,20.0,216.57,216.41,1.6028]
[1733806712291,20.0,216.56,216.41,2.29567228]
[1733806713011,8.0863,216.59,216.42,23.776884]
[1733806713205,8.0863,216.59,216.44,23.776884]
[1733806713380,8.0863,216.59,216.46,23.776884]
[1733806714808,8.0863,216.59,216.47,0.69275276]
[1733806715016,8.0863,216.59,216.48,23.776884]
[1733806715924,8.0863,216.59,216.43,23.776884]
[1733806722568,8.0863,216.59,216.45,23.776884]
[1733806722727,8.0863,216.59,216.41,1.6028]
[1733806723026,8.0863,216.59,216.42,24.46973254]
[1733806726385,20.0,216.56,216.42,24.46973254]
[1733806728224,8.0863,216.59,216.42,24.46973254]
[1733806728948,20.0,216.56,216.42,23.776884]
[1733806729110,20.0,216.56,216.4,23.776884]
[1733806729306,20.0,216.56,216.42,23.776884]
[1733806729925,8.0863,216.59,216.45,20.0]
[1733806730224,8.0863,216.59,216.44,23.776884]
[1733806734321,8.0863,216.59,216.45,0.69277606]
[1733806734507,8.0863,216.59,216.46,23.776884]
[1733806734902,8.0863,216.59,216.48,23.776884]
[1733806738429,8.0863,216.59,216.5,23.776884]
[1733806738547,8.0863,216.59,216.51,0.69258001]
[1733806738698,8.0863,216.59,216.48,23.776884]
[1733806738904,8.0863,216.59,216.46,10.0]
[1733806740512,8.0863,216.59,216.47,23.776884]
[1733806740806,8.0863,216.59,216.47,24.46962693]
[1733806745845,8.0863,216.59,216.47,0.69274293]
[1733806746009,8.0863,216.59,216.43,20.69271077]
[1733806746218,8.0863,216.59,216.4,0.69282804]
[1733806746735,18.0863,216.59,216.4,0.69282804]
[1733806746980,10.0,216.57,216.4,0.69282804]
[1733806747344,8.0863,216.59,216.4,0.69282804]
[1733806747666,18.0863,216.59,216.4,0.69282804]
[1733806747804,20.0,216.56,216.4,0.69282804]
[1733806748008,1.5652,216.55,216.4,20.69282804]
[1733806748216,6.5813,216.54,216.37,7.89573774]
[1733806748455,6.5813,216.54,216.37,0.69291855]
[1733806748646,20.0,216.51,216.36,7.20281919]
[1733806748937,1.5652,216.5,216.35,0.69304449]
[1733806749251,6.5813,216.49,216.35,0.69304449]
[1733806750145,16.5813,216.49,216.32,0.69313967]
[1733806750638,7.6977,216.43,216.3,0.69320531]
[1733806751644,7.6977,216.43,216.28,0.69327637]
[1733806752139,7.6977,216.43,216.28,20.69327637]
[1733806752535,7.6977,216.43,216.29,7.15644071]
[1733806752834,7.6977,216.43,216.3,7.84959091]
[1733806753040,7.6977,216.43,216.32,7.15644071]
[1733806753223,7.6977,216.43,216.34,23.776884]
[1733806753425,7.6977,216.43,216.36,23.776884]
[1733806753637,7.6977,216.43,216.34,23.776884]
[1733806753942,7.6977,216.43,216.31,23.776884]
[1733806754141,7.6977,216.43,216.33,23.776884]
[1733806754326,7.6977,216.43,216.34,0.69316013]
[1733806754844,7.6977,216.43,216.35,23.776884]
[1733806755042,7.6977,216.43,216.36,0.69302233]
[1733806755338,7.6977,216.43,216.37,23.776884]
[1733806757154,10.0,216.56,216.37,23.776884]
[1733806757155,7.6977,216.48,216.37,23.776884]
[1733806760240,7.6977,216.48,216.39,23.776884]
[1733806761019,7.6977,216.48,216.41,23.776884]
[1733806761334,7.6977,216.48,216.43,23.776884]
[1733806762853,7.6977,216.55,216.43,23.776884]
[1733806764326,7.6977,216.55,216.45,23.776884]
[1733806765090,7.6977,216.55,216.47,23.776884]
[1733806765945,7.6977,216.55,216.44,23.776884]
[1733806766545,7.6977,216.55,216.42,23.776884]
[1733806767625,7.6977,216.55,216.41,23.776884]
[1733806768443,7.6977,216.55,216.43,23.776884]
[1733806769827,7.6977,216.55,216.41,23.776884]
[1733806770028,7.6977,216.55,216.43,23.776884]
[1733806771144,7.6977,216.55,216.43,0.69278886]
[1733806771344,7.6977,216.55,216.44,23.776884]
[1733806772434,7.6977,216.55,216.46,23.776884]
[1733806773750,7.6977,216.55,216.43,23.776884]
[1733806776243,7.6977,216.55,216.43,0.69279305]
[1733806776544,7.6977,216.55,216.44,23.776884]
[1733806779068,20.0,216.59,216.4,0.69283814]
[1733806779247,7.8421,216.49,216.28,10.0]
[1733806779447,7.8421,216.49,216.29,0.69317198]
[1733806779658,5.34006063,216.48,216.29,0.69317198]
[1733806780363,5.34006063,216.48,216.32,23.776884]
[1733806780544,5.34006063,216.48,216.34,23.776884]
[1733806781207,7.8421,216.49,216.33,0.69313214]
[1733806782556,7.8421,216.49,216.34,23.776884]
[1733806782864,7.8421,216.49,216.33,23.776884]
[1733806783381,10.0,216.48,216.33,23.776884]
[1733806783554,22.88920762,216.48,216.33,23.776884]
[1733806783734,6.2902,216.46,216.32,20.0]
[1733806783937,6.2902,216.46,216.31,20.0]
[1733806784204,20.0,216.43,216.28,0.69328729]
[1733806784354,20.0,216.43,216.23,38.81127679]
[1733806784355,6.2902,216.42,216.25,0.69332885]
[1733806784556,1.6192,216.41,216.25,0.69332885]
[1733806785338,1.6192,216.41,216.26,20.69335925]
[1733806786066,1.6192,216.41,216.27,23.776884]
[1733806787548,6.2902,216.38,216.24,0.69338515]
[1733806788095,6.2902,216.38,216.21,0.69344331]
[1733806788368,1.6192,216.37,216.21,0.69344331]
[1733806788872,1.6192,216.37,216.23,20.0]
[1733806789057,6.2902,216.36,216.19,0.69354893]
[1733806789463,6.2902,216.36,216.21,11.19236128]
[1733806789668,6.2902,216.36,216.22,0.69338979]
[1733806790453,6.2902,216.36,216.25,23.776884]
[1733806790936,6.2902,216.36,216.25,24.47028183]
[1733806791158,6.2902,216.36,216.25,23.776884]
[1733806791688,6.2902,216.36,216.27,23.776884]
[1733806792559,6.2902,216.36,216.26,23.776884]
[1733806793353,6.2902,216.36,216.28,23.776884]
[1733806798656,6.2902,216.36,216.29,0.69333302]
[1733806798854,6.2902,216.36,216.3,23.776884]
[1733806799068,6.2902,216.36,216.26,10.0]
[1733806799069,1.6192,216.37,216.32,23.776884]
[1733806799268,1.6192,216.37,216.33,0.6931474]
[1733806799474,1.6192,216.37,216.34,23.776884]
[1733806800154,1.6192,216.37,216.27,20.0]
[1733806800385,1.6192,216.37,216.29,20.69326124]
[1733806800593,1.6192,216.37,216.31,20.0]
[1733806800760,6.1699,216.41,216.35,20.0]
[1733806800971,1.5785,216.44,216.36,0.69303983]
[1733806801462,1.5785,216.44,216.37,23.776884]
[1733806801879,1.5785,216.44,216.36,23.776884]
[1733806802469,1.5785,216.44,216.31,20.0]
[1733806802661,1.5785,216.44,216.32,20.69315618]
[1733806802862,1.5785,216.44,216.33,20.0]
[1733806803093,1.5785,216.44,216.34,20.69305391]
[1733806803800,1.5785,216.44,216.35,23.776884]
[1733806803968,1.5785,216.44,216.23,17.20281919]
[1733806804169,6.1699,216.43,216.24,0.69333476]
[1733806804385,12.76890762,216.43,216.24,0.69333476]
[1733806805440,12.76890762,216.43,216.23,10.0]
[1733806805441,6.1699,216.39,216.23,0.69335343]
[1733806805578,6.1699,216.39,216.25,11.19236128]
[1733806805685,6.1699,216.39,216.26,0.69329916]
[1733806806273,1.5785,216.38,216.22,0.69334826]
[1733806806464,22.76890762,216.37,216.18,1.69349109]
[1733806807283,12.76890762,216.37,216.18,12.88585237]
[1733806807691,12.76890762,216.37,216.18,1.69349109]
[1733806807896,12.76890762,216.37,216.2,20.0]
[1733806808068,12.76890762,216.37,216.21,0.69353935]
[1733806808370,12.76890762,216.37,216.21,20.69353935]
[1733806808567,6.1699,216.37,216.23,11.19236128]
[1733806808772,6.1699,216.37,216.27,23.776884]
[1733806809683,6.1699,216.37,216.29,23.776884]
[1733806810285,6.1699,216.37,216.26,20.0]
[1733806810286,6.1699,216.37,216.27,23.776884]
[1733806811083,7.8064,216.45,216.34,20.0]
[1733806811387,7.8064,216.45,216.37,23.776884]
[1733806811688,7.8064,216.45,216.36,23.776884]
[1733806812195,7.8064,216.45,216.38,23.776884]
[1733806815949,7.8064,216.45,216.33,0.69312896]
[1733806816270,7.8064,216.45,216.29,0.69312896]
[1733806816275,7.8064,216.45,216.3,11.19236128]
[1733806816489,7.8064,216.45,216.31,0.69320777]
[1733806817105,7.8064,216.45,216.32,11.19236128]
[1733806817317,7.8064,216.45,216.35,20.0]
[1733806818512,7.8064,216.45,216.33,0.69310853]
[1733806818697,7.8064,216.45,216.31,0.6931909]
[1733806820025,7.8064,216.45,216.31,11.88555218]
[1733806820319,7.8064,216.45,216.35,20.0]
[1733806820526,7.8064,216.45,216.36,0.6930806]
[1733806823295,7.8064,216.45,216.35,20.6931448]
[1733806823500,7.8064,216.45,216.33,0.69315444]
[1733806823693,7.8064,216.45,216.33,20.69315444]
[1733806824045,7.8064,216.45,216.31,0.69317977]
[1733806825018,7.8064,216.45,216.32,0.69323337]
[1733806825517,7.8064,216.45,216.33,11.19236128]
[1733806825806,7.8064,216.45,216.34,0.69309133]
[1733806826836,7.8064,216.45,216.3,20.0]
[1733806827513,7.8064,216.45,216.31,20.0]
[1733806828840,1.6312,216.44,216.29,0.69324145]
[1733806829170,8.1002,216.4,216.21,11.19236128]
[1733806829322,8.1002,216.4,216.19,11.5639]
[1733806829323,8.1002,216.4,216.26,11.19236128]
[1733806829648,8.1002,216.4,216.29,11.19236128]
[1733806829939,8.1002,216.4,216.3,21.88551056]
[1733806830106,8.1002,216.4,216.35,20.0]
[1733806830321,8.1002,216.4,216.33,20.69309632]
[1733806830741,8.1002,216.4,216.3,10.69312506]
[1733806831044,8.1002,216.4,216.31,20.0]
[1733806832033,8.1002,216.4,216.32,0.69320595]
[1733806832223,8.1002,216.4,216.32,11.88556723]
[1733806832417,8.1002,216.4,216.35,20.0]
[1733806833031,8.1002,216.46,216.39,20.0]
[1733806833242,1.86199125,216.58,216.43,20.0]
[1733806833541,6.469,216.51,216.37,11.19236128]
[1733806833759,6.469,216.51,216.37,20.0]
[1733806834224,6.469,216.51,216.34,10.69299895]
[1733806834444,6.469,216.51,216.34,10.0]
[1733806834810,20.0,216.48,216.34,10.0]
[1733806835182,8.1002,216.47,216.33,20.0]
[1733806835318,8.1002,216.47,216.35,20.0]
[1733806835523,8.1002,216.47,216.36,0.6930682]
[1733806835833,8.1002,216.47,216.35,20.0]
[1733806836738,8.1002,216.47,216.32,20.0]
[1733806837327,20.0,216.44,216.32,20.0]
[1733806837750,8.1002,216.47,216.33,20.0]
[1733806837923,8.1002,216.47,216.32,20.69320987]
[1733806838123,8.1002,216.47,216.34,20.0]
[1733806838445,8.1002,216.47,216.36,20.0]
[1733806838750,8.1002,216.47,216.33,20.0]
[1733806838944,8.1002,216.47,216.34,20.0]
[1733806839520,8.1002,216.47,216.33,20.0]
[1733806841147,8.1002,216.47,216.33,31.88552292]
[1733806842154,8.1002,216.47,216.37,20.0]
[1733806842771,8.1002,216.47,216.37,20.69301194]
[1733806844456,8.1002,216.47,216.36,20.0]
[1733806844569,8.1002,216.47,216.34,20.0]
[1733806844850,8.1002,216.47,216.36,20.0]
[1733806845018,8.1002,216.47,216.38,20.0]
[1733806845224,8.1002,216.47,216.41,20.0]
[1733806846342,8.1002,216.47,216.39,20.69294562]
[1733806846749,8.1002,216.47,216.39,20.0]
[1733806848650,8.1002,216.47,216.36,10.69296749]
[1733806848846,8.1002,216.47,216.36,10.0]
[1733806849350,8.1002,216.47,216.3,19.08829848]
[1733806849555,8.1002,216.47,216.3,0.69311801]
[1733806850060,8.1002,216.47,216.29,10.0]
[1733806850355,1.6527,216.46,216.29,10.0]
[1733806850529,20.0,216.44,216.29,10.0]
[1733806850959,20.0,216.44,216.27,11.19236128]
[1733806850960,7.8878,216.43,216.27,11.19236128]
[1733806851260,7.8878,216.43,216.26,11.88557517]
[1733806851637,7.8878,216.43,216.26,0.69321389]
[1733806852054,7.8878,216.38,216.23,0.69337866]
[1733806852259,7.8878,216.38,216.21,18.39518047]
[1733806852672,7.8878,216.38,216.21,7.20281919]
[1733806852852,7.8878,216.38,216.2,19.08860975]
[1733806853368,7.8878,216.38,216.22,31.19236128]
[1733806853657,7.8878,216.38,216.23,0.69343116]
[1733806853871,7.8878,216.38,216.21,11.88582286]
[1733806854755,7.8878,216.38,216.23,11.19236128]
[1733806855053,7.8878,216.38,216.24,0.69340968]
[1733806855275,7.8878,216.38,216.29,20.0]
[1733806855434,7.8878,216.38,216.29,11.88558325]
[1733806855635,7.8878,216.38,216.29,0.69322197]
[1733806855861,7.8878,216.38,216.29,11.88558325]
[1733806856203,7.8878,216.38,216.29,0.69322197]
[1733806859573,7.8878,216.38,216.25,21.88560722]
[1733806859682,7.8878,216.38,216.25,10.69324594]
[1733806859962,7.8878,216.38,216.25,21.88560722]
[1733806860135,7.8878,216.38,216.25,11.88560722]
[1733806860459,7.8878,216.38,216.23,11.88574634]
[1733806860837,7.8878,216.38,216.23,0.69338506]
[1733806861061,7.8878,216.38,216.26,11.19236128]
[1733806861966,7.8878,216.38,216.29,20.0]
[1733806862166,7.8878,216.38,216.22,0.69340517]
[1733806862340,7.8878,216.38,216.22,11.88576645]
[1733806862739,20.0,216.35,216.22,0.69340517]
[1733806862953,7.8878,216.34,216.2,0.69353671]
[1733806863278,20.0,216.31,216.18,1.0]
[1733806863451,7.8878,216.29,216.18,1.0]
[1733806873670,20.0,216.31,216.18,1.0]
[1733806873671,20.0,216.22,216.18,1.0]
[1733806874042,7.8699,216.21,216.03,11.88623981]
[1733806874521,20.0,216.18,216.01,10.5682305]
[1733806874532,6.3364,216.16,216.01,0.5682305]
[1733806874862,6.3364,216.16,216.02,0.69414496]
[1733806875348,6.3364,216.16,216.01,0.5682305]
[1733806875615,6.3364,216.16,216.01,20.5682305]
[1733806875772,6.3364,216.16,216.01,0.5682305]
[1733806875970,20.0,216.13,216.01,0.5682305]
[1733806877000,20.0,216.13,216.02,23.776884]
[1733806877170,6.3364,216.12,216.02,23.776884]
[1733806877382,1.5335,216.11,216.01,0.5682305]
[1733806878777,1.5335,216.11,216.02,23.776884]
[1733806879087,20.0,216.09,216.01,0.5682305]
[1733806879575,6.3364,216.08,216.01,0.5682305]
[1733806880166,6.3364,216.08,216.02,0.69416339]
[1733806880760,6.3364,216.08,216.03,23.776884]
[1733806880965,6.3364,216.08,216.02,23.776884]
[1733806883876,6.3364,216.08,216.01,0.5682305]
[1733806885485,6.3364,216.08,216.03,20.0]
[1733806885770,6.3364,216.08,216.04,23.776884]
[1733806885977,6.3364,216.08,216.03,23.776884]
[1733806887465,6.3364,216.08,216.01,0.5682305]
[1733806888570,6.3364,216.08,216.02,23.776884]
[1733806890469,6.3364,216.08,216.01,0.5682305]
[1733806891689,20.0,216.05,216.01,0.5682305]
[1733806893079,1.5587,216.07,216.01,0.5682305]
[1733806893274,1.5587,216.07,216.02,23.776884]
[1733806896997,1.5587,216.07,216.01,0.5682305]
[1733806897365,20.0,216.05,216.01,0.5682305]
[1733806898880,20.0,216.05,215.85,0.69456057]
[1733806899085,20.0,216.01,215.85,0.69456057]
[1733806899282,1.5587,216.0,215.85,0.69456057]
[1733806899773,1.5587,216.0,215.87,11.19236128]
[1733806900094,1.5587,216.0,215.88,0.69455619]
[1733806900663,1.5587,216.0,215.91,23.776884]
[1733806900867,1.5587,216.0,215.9,20.0]
[1733806900868,1.5587,216.0,215.93,23.776884]
[1733806901988,1.5587,216.0,215.9,0.69451794]
[1733806902481,1.5587,216.0,215.9,20.69451794]
[1733806903069,1.5587,216.0,215.9,31.88687922]
[1733806903482,1.5587,216.0,215.91,23.776884]
[1733806903694,1.5587,216.0,215.93,23.776884]
[1733806905478,6.0878,216.04,215.95,23.776884]
[1733806905681,6.0878,216.04,215.97,23.776884]
[1733806906175,6.084,216.09,216.02,20.0]
[1733806906395,6.084,216.09,216.03,43.776884]
[1733806907199,6.03771228,216.09,216.03,43.776884]
[1733806907971,1.5322,216.12,216.03,43.776884]
[1733806908177,20.0,216.38,216.03,43.776884]
[1733806908178,1.5322,216.26,216.06,20.0]
[1733806908382,1.5322,216.26,216.07,23.776884]
[1733806908600,1.5322,216.26,216.09,23.776884]
[1733806909889,21.5322,216.26,216.09,23.776884]
[1733806910086,1.5322,216.23,216.07,23.776884]
[1733806910403,26.084,216.22,216.07,23.776884]
[1733806912773,7.6162,216.21,216.07,23.776884]
[1733806912991,7.6162,216.21,215.94,1.5344]
[1733806912992,20.0,216.08,215.91,7.20281919]
[1733806913353,20.0,216.01,215.87,0.69435653]
[1733806913728,20.0,215.92,215.79,0.5682305]
[1733806913743,20.0,215.92,215.8,0.69470034]
[1733806914275,20.0,215.88,215.79,0.5682305]
[1733806914284,20.0,215.84,215.79,0.5682305]
[1733806914299,20.0,215.8,215.7,18.542105]
[1733806914752,30.0,215.78,215.65,0.69495525]
[1733806914766,20.0,215.71,215.65,0.69495525]
[1733806915091,20.0,215.69,215.65,0.69495525]
[1733806915298,20.0,215.69,215.58,0.69528023]
[1733806915309,0.69435653,215.74,215.58,0.69528023]
[1733806915310,20.0,215.65,215.59,1.1]
[1733806915492,20.0,215.65,215.57,0.5682305]
[1733806916096,20.0,215.64,215.57,0.5682305]
[1733806916303,30.0,215.64,215.57,0.5682305]
[1733806916487,20.69435653,215.63,215.44,1.79571385]
[1733806916695,20.0,215.58,215.44,1.1]
[1733806916924,20.0,215.56,215.45,1.1]
[1733806917223,20.0,215.54,215.4,23.25953959]
[1733806917420,0.69435653,215.53,215.41,18.04254228]
[1733806917720,10.0,215.55,215.4,18.73861104]
[1733806917913,10.0,215.57,215.44,18.04254228]
[1733806918119,10.0,215.6,215.48,18.04254228]
[1733806918307,0.69435653,215.67,215.52,18.04254228]
[1733806918493,10.24395791,215.84,215.49,0.69579812]
[1733806918494,10.0,215.72,215.56,18.04254228]
[1733806918698,10.0,215.72,215.58,18.04254228]
[1733806918894,10.0,215.72,215.59,0.69539631]
[1733806919299,10.0,215.72,215.59,20.69539631]
[1733806919492,10.0,215.72,215.6,23.776884]
[1733806919713,10.0,215.72,215.62,23.776884]
[1733806919910,10.0,215.67,215.59,1.1]
[1733806920116,10.0,215.69,215.58,23.776884]
[1733806920287,10.0,215.69,215.6,23.776884]
[1733806921018,10.0,215.72,215.6,23.776884]
[1733806921312,10.0,215.74,215.62,23.776884]
[1733806921515,10.0,215.74,215.64,23.776884]
[1733806921850,6.084,215.78,215.66,41.81942628]
[1733806922011,10.0,215.79,215.68,23.776884]
[1733806922300,7.6162,215.86,215.68,1.1]
[1733806922301,10.0,215.77,215.68,1.1]
[1733806922486,10.0,215.77,215.69,23.776884]
[1733806922687,10.0,215.79,215.69,23.776884]
[1733806923205,10.0,215.81,215.71,23.776884]
[1733806923414,10.0,215.85,215.73,23.776884]
[1733806923711,10.0,215.83,215.74,0.69500126]
[1733806923925,10.0,215.8,215.71,1.1]
[1733806924217,10.0,215.84,215.72,0.69510124]
[1733806924600,10.0,215.84,215.72,18.73764352]
[1733806924837,10.0,215.88,215.76,41.81942628]
[1733806925021,10.0,215.9,215.79,18.04254228]
[1733806925376,10.0,215.9,215.8,24.47162718]
[1733806926289,10.0,215.92,215.8,24.47162718]
[1733806926511,10.0,215.94,215.8,43.61416946]
[1733806926708,10.0,215.96,215.82,18.04254228]
[1733806926930,10.0,215.96,215.83,0.6945963]
[1733806927289,10.0,216.0,215.85,18.04254228]
[1733806927491,10.0,215.98,215.86,24.47137629]
[1733806927719,10.0,215.98,215.86,0.69449229]
[1733806928524,20.0,215.9,215.8,1.7945487]
[1733806928688,16.084,216.04,215.81,23.776884]
[1733806928689,20.0,215.92,215.81,23.776884]
[1733806928883,20.0,215.92,215.82,0.69463785]
[1733806929542,10.0,215.9,215.82,0.69463785]
[1733806929848,20.0,215.87,215.79,1.7947651]
[1733806930582,20.0,215.83,215.75,0.69485172]
[1733806930732,20.0,215.83,215.74,1.79498793]
[1733806930921,20.0,215.81,215.74,1.79486721]
[1733806931431,20.0,215.8,215.74,1.79486721]
[1733806931704,20.0,215.8,215.74,0.69486721]
[1733806932046,20.0,215.8,215.71,0.69505269]
[1733806932433,20.0,215.78,215.71,1.79505269]
[1733806932666,20.0,215.74,215.68,0.6951065]
[1733806933148,20.0,215.78,215.68,0.6951065]
[1733806933619,20.0,215.78,215.69,0.69510196]
[1733806933817,20.0,215.82,215.69,19.83764424]
[1733806934051,10.0,215.87,215.71,19.14254228]
[1733806934269,10.0,215.86,215.72,1.7948865]
[1733806934433,10.69435653,215.86,215.72,1.7948865]
[1733806934627,10.0,215.89,215.73,23.776884]
[1733806934856,10.0,215.87,215.74,0.69487264]
[1733806935301,10.0,215.85,215.74,0.69487264]
[1733806935308,20.0,215.82,215.74,0.69487264]
[1733806935429,10.0,215.87,215.74,1.79487264]
[1733806935632,10.0,215.89,215.74,1.79487264]
[1733806935839,10.0,215.87,215.74,1.79487264]
[1733806936243,33.776884,215.86,215.74,1.79487264]
[1733806936833,20.0,215.79,215.7,0.69494567]
[1733806937427,20.0,215.79,215.7,1.79494567]
[1733806938255,20.0,215.77,215.7,0.69494567]
[1733806938432,20.0,215.75,215.66,0.69517666]
[1733806938747,20.0,215.75,215.66,1.79517666]
[1733806938925,10.0,215.83,215.67,18.04254228]
[1733806939132,23.776884,215.86,215.66,1.79517666]
[1733806939133,10.0,215.88,215.7,31.90254228]
[1733806939357,10.0,215.89,215.74,18.04254228]
[1733806939558,10.0,215.91,215.75,24.471704]
[1733806939745,10.0,215.91,215.75,42.51424628]
[1733806939931,10.0,215.91,215.75,24.471704]
[1733806941361,10.0,215.91,215.75,26.006704]
[1733806941541,10.0,215.89,215.75,26.006704]
[1733806941846,10.0,215.91,215.75,26.006704]
[1733806942055,20.0,215.88,215.75,26.006704]
[1733806942353,20.0,215.91,215.75,62.78246229]
[1733806943558,20.0,215.89,215.75,62.78246229]
[1733806943762,10.0,215.96,215.78,29.24225829]
[1733806943937,10.0,215.98,215.82,39.24225829]
[1733806944188,10.0,216.01,215.83,29.93675611]
[1733806944353,10.0,216.01,215.84,53.01914229]
[1733806944554,10.0,216.03,215.85,31.03665537]
[1733806944734,10.0,216.03,215.86,23.776884]
[1733806945069,10.0,216.01,215.87,0.69438242]
[1733806945440,10.0,215.99,215.87,0.69438242]
[1733806946465,20.0,215.96,215.87,1.79438242]
[1733806946663,20.0,215.98,215.87,1.79438242]